fUST/lending_fUST_20260102
["ID","MTS","AMOUNT","RATE_DAILY","PERIOD"]
[400306133,1767339047286,-4216.03775141,0.00010559,2]
[400306250,1767340231693,-560.0,0.0001,2]
[400306252,1767340231703,-150.0,0.00010113,2]
[400306254,1767340231712,-300.0,0.00010357,2]
[400306256,1767340231721,-10696.01397739,0.00010358,2]
[400306258,1767340231732,-13998.35943124,0.00010358,2]
[400306260,1767340231743,-1205.21658199,0.00010358,2]
[400306262,1767340231754,-356.90616913,0.00010358,2]
[400306269,1767340231857,-525.06757274,0.00010358,2]
[400306286,1767340237777,-152.75,0.0001,2]
[400306288,1767340237787,-167.35191841,0.00010357,2]
[400306290,1767340237796,-500.0,0.00010357,2]
[400306292,1767340237805,-352.82367692,0.00010357,2]
[400306294,1767340237816,-147.17632308,0.00010357,2]
[400306296,1767340237825,-500.0,0.00010357,2]
[400306298,1767340237836,-30.25016309,0.00010357,2]
[400306300,1767340237848,-469.74983691,0.00010357,2]
[400306302,1767340237857,-500.0,0.00010357,2]
[400306304,1767340237866,-500.0,0.00010357,2]
[400306306,1767340237875,-500.0,0.00010357,2]
[400306308,1767340237885,-500.0,0.00010357,2]
[400306310,1767340237894,-500.0,0.00010357,2]
[400306312,1767340237903,-645.47653006,0.00010357,2]
[400306314,1767340237916,-500.0,0.00010357,2]
[400306316,1767340237925,-500.0,0.00010357,2]
[400306318,1767340237934,-451.21159445,0.00010357,2]
[400306320,1767340237944,-605.94498861,0.00010357,2]
[400306322,1767340237954,-500.0,0.00010357,2]
[400306324,1767340237963,-500.0,0.00010357,2]
[400306325,1767340237972,-500.0,0.00010357,2]
[400306327,1767340237982,-189.33720938,0.00010357,2]
[400306329,1767340237992,-500.0,0.00010357,2]
[400306331,1767340238002,-500.0,0.00010357,2]
[400306333,1767340238011,-500.0,0.00010357,2]
[400306335,1767340238021,-500.0,0.00010357,2]
[400306337,1767340238030,-500.0,0.00010357,2]
[400306338,1767340238041,-500.0,0.00010357,2]
[400306339,1767340238051,-487.79791642,0.00010357,2]
[400306340,1767340238062,-973218.43626751,0.00010358,2]
[400306341,1767340238072,-461.67526834,0.00010453,2]
[400306342,1767340238081,-2230.315306,0.00010453,2]
[400306343,1767340238091,-50000.0,0.00010457,2]
[400306344,1767340238100,-53634.3372458,0.00010559,2]
[400306345,1767340238109,-1000.0,0.00010659,2]
[400306346,1767340238118,-1000.0,0.00010659,2]
[400306347,1767340238127,-2290.05100415,0.00010697,2]
[400306348,1767340238137,-685.15554797,0.00010763,2]
[400306349,1767340238147,-317.32,0.00010864,2]
[400306350,1767340238156,-300.0,0.00010866,2]
[400306351,1767340238166,-300.0,0.00010866,2]
[400306352,1767340238175,-300.0,0.00010866,2]
[400306353,1767340238185,-300.0,0.00010866,2]
[400306354,1767340238194,-300.0,0.00010866,2]
[400306355,1767340238204,-300.0,0.00010866,2]
[400306356,1767340238213,-300.0,0.00010866,2]
[400306357,1767340238222,-300.0,0.00010866,2]
[400306358,1767340238232,-300.0,0.00010866,2]
[400306359,1767340238242,-300.0,0.00010866,2]
[400306360,1767340238252,-300.0,0.00010866,2]
[400306361,1767340238262,-300.0,0.00010866,2]
[400306362,1767340238271,-300.0,0.00010866,2]
[400306363,1767340238280,-300.0,0.00010866,2]
[400306364,1767340238290,-300.0,0.00010866,2]
[400306365,1767340238299,-600.0,0.00010866,2]
[400306366,1767340238310,-152.75,0.000109,2]
[400306367,1767340238319,-500.0,0.00010959,2]
[400306368,1767340238329,-500.0,0.00010959,2]
[400306369,1767340238338,-223.13651586,0.00010959,2]
[400306370,1767340238348,-478.75725327,0.00011001,2]
[400306371,1767340238357,-2312.83697232,0.00011001,2]
[400306372,1767340238367,-2290.05100415,0.00011098,2]
[400306373,1767340238376,-2290.05100415,0.0001138,2]
[400306374,1767340238385,-420.0,0.00011389,2]
[400306375,1767340238395,-2157.0,0.00011458,2]
[400306376,1767340238404,-1365.0,0.00011458,2]
[400306377,1767340238418,-628.0,0.00011458,2]
[400306378,1767340238429,-551.0,0.00011458,2]
[400306379,1767340238438,-496.47127164,0.00011549,2]
[400306380,1767340238448,-2398.4119403,0.00011549,2]
[400306381,1767340238457,-160.0,0.00011616,3]
[400306382,1767340238466,-410.49,0.00011751,2]
[400306383,1767340238476,-150.0,0.0001183,2]
[400306384,1767340238485,-150.0,0.0001183,2]
[400306385,1767340238494,-634.65,0.00011851,2]
[400306386,1767340238505,-152.75,0.000119,2]
[400306387,1767340238514,-160.0,0.00011927,4]
[400306388,1767340238524,-720.0,0.00011952,2]
[400306389,1767340238534,-500.0,0.0001198,2]
[400306390,1767340238543,-4477.0,0.00012,2]
[400306391,1767340238553,-514.84070869,0.00012097,2]
[400306392,1767340238562,-2487.15318209,0.00012097,2]
[400306393,1767340238572,-177.0,0.00012113,2]
[400306394,1767340238581,-160.0,0.00012238,5]
[400306395,1767340238591,-903.04,0.00012329,2]
[400306396,1767340238601,-2804.91,0.00012329,2]
[400306397,1767340238611,-2337.43,0.00012329,2]
[400306398,1767340238620,-1947.85,0.00012329,2]
[400306399,1767340238630,-1623.21,0.00012329,2]
[400306400,1767340238639,-1352.68,0.00012329,2]
[400306401,1767340238648,-1127.23,0.00012329,2]
[400306402,1767340238658,-939.36,0.00012329,2]
[400306403,1767340238668,-782.8,0.00012329,2]
[400306404,1767340238678,-652.33,0.00012329,2]
[400306405,1767340238687,-543.61,0.00012329,2]
[400306406,1767340238697,-453.01,0.00012329,2]
[400306407,1767340238706,-377.51,0.00012329,2]
[400306408,1767340238716,-314.59,0.00012329,2]
[400306409,1767340238725,-262.16,0.00012329,2]
[400306410,1767340238734,-218.46,0.00012329,2]
[400306411,1767340238744,-182.05,0.00012329,2]
[400306412,1767340238755,-151.71,0.00012329,2]
[400306413,1767340238764,-758.59,0.00012329,2]
[400306414,1767340238773,-11967.4382591,0.00012365,2]
[400306415,1767340238783,-400.0,0.000125,2]
[400306416,1767340238793,-587.0,0.00012523,2]
[400306417,1767340238802,-160.0,0.00012549,6]
[400306418,1767340238812,-629.996571,0.00012613,2]
[400306419,1767340238821,-533.88981491,0.00012645,2]
[400306420,1767340238831,-2579.17784983,0.00012645,2]
[400306421,1767340238840,-898.0,0.000127,2]
[400306422,1767340238850,-2670.2964153,0.00012768,2]
[400306423,1767340238860,-156.0,0.000128,2]
[400306424,1767340238870,-600.0,0.00012805,2]
[400306425,1767340238879,-951.97,0.00012854,2]
[400306426,1767340238889,-160.0,0.0001286,7]
[400306427,1767340238899,-592744.58150764,0.0001287,2]
[400306428,1767340238919,-1340.016455,0.0001287,2]
[400306429,1767340238932,-1477.42241598,0.0001287,2]
[400306484,1767340240135,-152.75,0.000128,2]
[400306485,1767340240144,-513.37502169,0.0001287,2]
[400306526,1767340245875,-552.942,0.00011458,2]
[400306527,1767340245885,-318.90990565,0.0001287,2]
[400306528,1767340245910,-2769.49731269,0.0001287,2]
[400306529,1767340246207,-18158.29728928,0.0001287,2]
[400306530,1767340246218,-311.0,0.0001287,2]
[400306648,1767341431975,-150.0,0.0001,2]
[400306650,1767341431984,-480.05,0.0001,2]
[400306652,1767341431995,-480.05,0.000102,2]
[400306654,1767341432004,-300.0,0.00010252,2]
[400306656,1767341432014,-10778.89085826,0.00010253,2]
[400306658,1767341432025,-1779.00510183,0.00010253,2]
[400306660,1767341432036,-825.0,0.00010253,2]
[400306699,1767341438059,-152.75,0.0001,2]
[400306700,1767341438069,-204.67160576,0.00010252,2]
[400306701,1767341438078,-500.0,0.00010252,2]
[400306702,1767341438088,-500.0,0.00010252,2]
[400306703,1767341438098,-500.0,0.00010252,2]
[400306704,1767341438107,-450.32831926,0.00010252,2]
[400306705,1767341438118,-49.67168074,0.00010252,2]
[400306706,1767341438128,-500.0,0.00010252,2]
[400306707,1767341438137,-500.0,0.00010252,2]
[400306708,1767341438147,-417.9652153,0.00010252,2]
[400306709,1767341438156,-500.0,0.00010252,2]
[400306710,1767341438165,-500.0,0.00010252,2]
[400306711,1767341438175,-500.0,0.00010252,2]
[400306712,1767341438185,-500.0,0.00010252,2]
[400306713,1767341438194,-986617.10403991,0.00010253,2]
[400306714,1767341438204,-431.0,0.00010352,2]
[400306715,1767341438213,-50000.0,0.00010353,2]
[400306716,1767341438223,-480.05,0.000104,2]
[400306717,1767341438232,-461.67526834,0.00010525,2]
[400306718,1767341438241,-2230.315306,0.00010525,2]
[400306719,1767341438251,-300.0,0.00010561,2]
[400306720,1767341438260,-300.0,0.00010561,2]
[400306721,1767341438270,-300.0,0.00010561,2]
[400306722,1767341438280,-300.0,0.00010561,2]
[400306723,1767341438289,-300.0,0.00010561,2]
[400306724,1767341438299,-300.0,0.00010561,2]
[400306725,1767341438309,-300.0,0.00010561,2]
[400306726,1767341438319,-300.0,0.00010561,2]
[400306727,1767341438328,-300.0,0.00010561,2]
[400306728,1767341438338,-300.0,0.00010561,2]
[400306729,1767341438347,-300.0,0.00010561,2]
[400306730,1767341438357,-300.0,0.00010561,2]
[400306731,1767341438367,-300.0,0.00010561,2]
[400306732,1767341438377,-300.0,0.00010561,2]
[400306733,1767341438387,-300.0,0.00010561,2]
[400306734,1767341438397,-600.0,0.00010561,2]
[400306735,1767341438406,-480.05,0.000106,2]
[400306736,1767341438417,-480.05,0.000108,2]
[400306737,1767341438427,-317.32,0.00010866,2]
[400306738,1767341438437,-6005.84921353,0.00010897,2]
[400306739,1767341438446,-500.0,0.00010959,2]
[400306740,1767341438455,-500.0,0.00010959,2]
[400306741,1767341438464,-480.05,0.00011,2]
[400306742,1767341438476,-478.75725327,0.00011073,2]
[400306743,1767341438486,-2312.83697232,0.00011073,2]
[400306744,1767341438495,-152.75,0.000112,2]
[400306745,1767341438505,-420.0,0.00011274,2]
[400306746,1767341438514,-720.0,0.00011617,2]
[400306747,1767341438525,-496.47127164,0.00011621,2]
[400306748,1767341438534,-2398.4119403,0.00011621,2]
[400306749,1767341438545,-150.0,0.00011689,2]
[400306750,1767341438555,-150.0,0.00011689,2]
[400306751,1767341438564,-1365.0,0.00011689,2]
[400306752,1767341438573,-628.0,0.00011689,2]
[400306753,1767341438583,-410.49,0.0001175,3]
[400306754,1767341438592,-160.0,0.0001185,3]
[400306755,1767341438604,-634.65,0.00011854,2]
[400306756,1767341438614,-500.0,0.0001198,2]
[400306757,1767341438623,-177.0,0.00012,2]
[400306758,1767341438632,-4477.0,0.00012,2]
[400306759,1767341438641,-514.84070869,0.00012169,2]
[400306760,1767341438651,-2487.15318209,0.00012169,2]
[400306761,1767341438660,-152.75,0.000123,2]
[400306762,1767341438670,-2955.42,0.00012329,2]
[400306763,1767341438679,-2462.85,0.00012329,2]
[400306764,1767341438688,-2052.37,0.00012329,2]
[400306765,1767341438697,-1710.31,0.00012329,2]
[400306766,1767341438706,-1425.26,0.00012329,2]
[400306767,1767341438716,-1187.72,0.00012329,2]
[400306768,1767341438725,-989.76,0.00012329,2]
[400306769,1767341438734,-824.8,0.00012329,2]
[400306770,1767341438743,-687.34,0.00012329,2]
[400306771,1767341438752,-572.78,0.00012329,2]
[400306772,1767341438761,-477.32,0.00012329,2]
[400306773,1767341438771,-397.76,0.00012329,2]
[400306774,1767341438780,-331.47,0.00012329,2]
[400306775,1767341438789,-276.22,0.00012329,2]
[400306776,1767341438798,-230.19,0.00012329,2]
[400306777,1767341438807,-230.19,0.00012329,2]
[400306778,1767341438816,-153.46,0.00012329,2]
[400306779,1767341438825,-767.31,0.00012329,2]
[400306780,1767341438835,-2290.0510041,0.00012366,2]
[400306781,1767341438844,-160.0,0.00012394,4]
[400306782,1767341438853,-587.0,0.00012398,2]
[400306783,1767341438863,-629.996571,0.00012613,2]
[400306784,1767341438872,-533.88981491,0.00012717,2]
[400306785,1767341438881,-2579.17784983,0.00012717,2]
[400306786,1767341438890,-184.2005117,0.0001274,2]
[400306787,1767341438900,-184.2005119,0.0001274,2]
[400306788,1767341438909,-184.2005117,0.0001274,2]
[400306789,1767341438918,-186.8893279,0.0001274,2]
[400306790,1767341438927,-184.2005117,0.0001274,2]
[400306791,1767341438936,-187.8338203,0.0001274,2]
[400306792,1767341438945,-184.2005117,0.0001274,2]
[400306793,1767341438954,-184.2005119,0.0001274,2]
[400306794,1767341438963,-184.2005117,0.0001274,2]
[400306795,1767341438973,-184.2005119,0.0001274,2]
[400306796,1767341438982,-184.2005117,0.0001274,2]
[400306797,1767341438991,-184.2005119,0.0001274,2]
[400306798,1767341439001,-184.2005117,0.0001274,2]
[400306799,1767341439010,-184.2005119,0.0001274,2]
[400306800,1767341439019,-184.2005117,0.0001274,2]
[400306801,1767341439028,-184.2005119,0.0001274,2]
[400306802,1767341439037,-184.2005117,0.0001274,2]
[400306803,1767341439046,-184.2005119,0.0001274,2]
[400306804,1767341439055,-184.2005117,0.0001274,2]
[400306805,1767341439065,-184.2005119,0.0001274,2]
[400306806,1767341439074,-864.0,0.00012779,2]
[400306807,1767341439083,-898.0,0.000128,2]
[400306808,1767341439092,-600.0,0.00012805,2]
[400306809,1767341439101,-53634.3372458,0.00012831,2]
[400306810,1767341439111,-951.97,0.00012842,2]
[400306811,1767341439120,-1000.0,0.0001287,2]
[400306812,1767341439129,-1000.0,0.0001287,2]
[400306813,1767341439139,-599143.57970924,0.0001287,2]
[400306814,1767341439151,-5848.75866296,0.0001287,2]
[400306815,1767341439163,-17097.65758473,0.0001287,2]
[400306816,1767341439174,-4391.23581549,0.0001287,2]
[400306817,1767341439186,-4295.9564416,0.0001287,2]
[400306818,1767341439197,-960.88302587,0.0001287,2]
[400306819,1767341439209,-529.46489486,0.0001287,2]
[400306820,1767341439220,-1888.3931287,0.0001287,2]
[400306850,1767341446133,-500.0,0.00011762,2]
[400306851,1767341446180,-383.0,0.00011762,2]
[400306853,1767341446189,-221.017359,0.00012741,2]
[400306855,1767341446223,-699.44,0.00012741,2]
[400306856,1767341446235,-461.02753643,0.00012741,2]
[400306857,1767341602023,200.0,0.00028767,120]
[400306858,1767341611250,530.59,0.00028767,120]
[400306859,1767341613498,364.0,9.76e-05,2]
[400306860,1767341816512,3618.51510457,9.76e-05,2]
[400306861,1767341898831,-899.14476224,0.00037044,120]
[400306862,1767341898858,-3110.84582648,0.00037044,120]
[400306863,1767341898885,-4127.348882,0.00037044,120]
[400306864,1767341898912,-3000.0,0.00037044,120]
[400306865,1767341898939,-2399.99999901,0.00037044,30]
[400306866,1767341898965,-200.0,0.00037044,120]
[400306867,1767341898991,-1000.0,0.00037044,120]
[400306868,1767341899017,-100000.0,0.00037044,60]
[400306869,1767341899045,-11650.0,0.00037044,120]
[400306870,1767341899072,-3508.6711,0.00037044,30]
[400306871,1767341899099,-2473.0,0.00037044,120]
[400306872,1767341899126,-168.9526989,0.00037044,120]
[400306873,1767341899153,-528.72947054,0.00037044,120]
[400306874,1767341899180,-500.0,0.00037044,30]
[400306875,1767341899207,-500.0,0.00037044,30]
[400306876,1767341899232,-500.0,0.00037044,30]
[400306877,1767341899259,-500.0,0.00037044,30]
[400306878,1767341899287,-1558.94478536,0.00037044,120]
[400306879,1767341899313,-23073.0,0.00037044,120]
[400306880,1767341899344,-10011.18822303,0.00037044,30]
[400306881,1767341899372,-5213.69661167,0.00037044,30]
[400306882,1767341899401,-51068.97173709,0.00037044,30]
[400306883,1767341899429,-105693.23130245,0.00037044,30]
[400306884,1767341899457,-201658.48358549,0.00037044,30]
[400306885,1767341899485,-26535.39531461,0.00037044,120]
[400306886,1767341899513,-264.15583769,0.00037044,60]
[400306887,1767341899542,-634.58938838,0.00037044,120]
[400306888,1767341899573,-159.66320322,0.00037044,120]
[400306889,1767341899605,-159.66320322,0.00037044,120]
[400306890,1767341899634,-159.66320322,0.00037044,120]
[400306891,1767341899661,-159.66320322,0.00037044,120]
[400306892,1767341899690,-159.66320322,0.00037044,120]
[400306893,1767341899718,-159.66320322,0.00037044,120]
[400306894,1767341899747,-159.66320322,0.00037044,120]
[400306895,1767341899774,-159.66320321,0.00037044,120]
[400306896,1767341899804,-2652.90721499,0.00037044,31]
[400306897,1767341899831,-989.40123057,0.00037044,60]
[400306898,1767341899858,-3507.0,0.00037044,60]
[400306899,1767341899884,-5000.0,0.00037044,60]
[400306900,1767341899911,-5000.0,0.00037044,60]
[400306901,1767341899938,-14242.28392837,0.00037044,60]
[400306902,1767341899964,-614.59018683,0.00037044,120]
[400306903,1767341899991,-614.59018683,0.00037044,120]
[400306904,1767341900018,-614.59018683,0.00037044,120]
[400306905,1767341900044,-614.59018683,0.00037044,120]
[400306906,1767341900070,-614.59018683,0.00037044,120]
[400306907,1767341900098,-614.59018683,0.00037044,120]
[400306908,1767341900124,-614.59018683,0.00037044,120]
[400306909,1767341900151,-614.59018683,0.00037044,120]
[400306910,1767341900176,-614.59018683,0.00037044,120]
[400306911,1767341900202,-614.59018683,0.00037044,120]
[400306912,1767341900229,-614.59018683,0.00037044,120]
[400306913,1767341900256,-614.59018683,0.00037044,120]
[400306914,1767341900285,-614.59018683,0.00037044,120]
[400306915,1767341900312,-614.59018683,0.00037044,120]
[400306916,1767341900339,-204.8633956,0.00037044,120]
[400306917,1767341900367,-204.8633956,0.00037044,120]
[400306918,1767341900394,-204.8633956,0.00037044,120]
[400306919,1767341900421,-276.34733815,0.00037044,60]
[400306920,1767341900448,-453.38780889,0.00037044,60]
[400306921,1767341900475,-211.43547355,0.00037044,60]
[400306922,1767341900503,-318.33931827,0.00037044,60]
[400306923,1767341900530,-500.0,0.00037044,60]
[400306924,1767341900558,-305.56023957,0.00037044,60]
[400306925,1767341900714,-500.0,0.00037044,60]
[400306926,1767341900742,-500.0,0.00037044,60]
[400306927,1767341900770,-500.0,0.00037044,60]
[400306928,1767341900797,-500.0,0.00037044,60]
[400306929,1767341900823,-500.0,0.00037044,60]
[400306930,1767341900849,-500.0,0.00037044,60]
[400306931,1767341900876,-500.0,0.00037044,60]
[400306932,1767341900901,-500.0,0.00037044,60]
[400306933,1767341900927,-500.0,0.00037044,60]
[400306934,1767341900951,-500.0,0.00037044,60]
[400306935,1767341900978,-240.53020561,0.00037044,60]
[400306936,1767341901005,-500.0,0.00037044,60]
[400306937,1767341901030,-500.0,0.00037044,60]
[400306938,1767341901056,-500.0,0.00037044,60]
[400306939,1767341901081,-500.0,0.00037044,60]
[400306940,1767341901107,-500.0,0.00037044,60]
[400306941,1767341901132,-500.0,0.00037044,60]
[400306942,1767341901158,-310.12946969,0.00037044,60]
[400306943,1767341901184,-531.21997292,0.00037044,60]
[400306944,1767341901208,-2085.19876059,0.00037044,120]
[400306945,1767341901233,-406.568308,0.00037044,60]
[400306946,1767341901259,-381.08499116,0.00037044,60]
[400306947,1767341901285,-483.50485344,0.00037044,60]
[400306948,1767341901311,-272.56076935,0.00037044,60]
[400306949,1767341901337,-276.17519278,0.00037044,60]
[400306950,1767341901364,-490.06420673,0.00037044,60]
[400306951,1767341901392,-685.222746,0.00037044,60]
[400306952,1767341901421,-312.62267517,0.00037044,60]
[400306953,1767341901448,-500.0,0.00037044,60]
[400306954,1767341901477,-497.71228405,0.00037044,60]
[400306955,1767341901504,-470.08407109,0.00037044,60]
[400306956,1767341901529,-481.10066723,0.00037044,60]
[400306957,1767341901555,-498.13162076,0.00037044,60]
[400306958,1767341901581,-504.05878691,0.00037044,30]
[400306959,1767341901607,-500.0,0.00037044,60]
[400306960,1767341901633,-500.0,0.00037044,60]
[400306961,1767341901659,-500.0,0.00037044,60]
[400306962,1767341901683,-500.0,0.00037044,60]
[400306963,1767341901707,-500.0,0.00037044,60]
[400306964,1767341901731,-500.0,0.00037044,60]
[400306965,1767341901755,-441.39944143,0.00037044,60]
[400306966,1767341901780,-500.0,0.00037044,60]
[400306967,1767341901806,-159.62570342,0.00037044,60]
[400306968,1767341901834,-503.40669738,0.00037044,60]
[400306969,1767341901860,-483.79633414,0.00037044,60]
[400306970,1767341901886,-467.58412759,0.00037044,60]
[400306971,1767341901914,-263.69390923,0.00037044,60]
[400306972,1767341901941,-354.87169713,0.00037044,60]
[400306973,1767341901968,-227.14026222,0.00037044,60]
[400306974,1767341901993,-500.0,0.00037044,60]
[400306975,1767341902019,-635.03252054,0.00037044,60]
[400306976,1767341902044,-252.868229,0.00037044,60]
[400306977,1767341902069,-329.35681403,0.00037044,60]
[400306978,1767341902095,-421.8602443,0.00037044,60]
[400306979,1767341902120,-500.0,0.00037044,60]
[400306980,1767341902145,-500.0,0.00037044,60]
[400306981,1767341902171,-500.0,0.00037044,60]
[400306982,1767341902196,-500.0,0.00037044,60]
[400306983,1767341902221,-500.0,0.00037044,60]
[400306984,1767341902247,-500.0,0.00037044,60]
[400306985,1767341902274,-500.0,0.00037044,60]
[400306986,1767341902304,-500.0,0.00037044,60]
[400306987,1767341902332,-500.0,0.00037044,60]
[400306988,1767341902360,-500.0,0.00037044,60]
[400306989,1767341902387,-500.0,0.00037044,60]
[400306990,1767341902415,-542.55405518,0.00037044,60]
[400306991,1767341902443,-500.0,0.00037044,60]
[400306992,1767341902470,-564.28798828,0.00037044,60]
[400306993,1767341902497,-342.79770463,0.00037044,60]
[400306994,1767341902524,-16403.199315,0.00037044,60]
[400306995,1767341902552,-266.31819943,0.00037044,60]
[400306996,1767341902581,-500.0,0.00037044,60]
[400306997,1767341902610,-500.0,0.00037044,60]
[400306998,1767341902638,-374.26278127,0.00037044,60]
[400306999,1767341902670,-500.0,0.00037044,60]
[400307000,1767341902697,-571.72953621,0.00037044,60]
[400307001,1767341902724,-338.86622332,0.00037044,60]
[400307002,1767341902750,-500.0,0.00037044,60]
[400307003,1767341902777,-489.96498002,0.00037044,60]
[400307004,1767341902803,-499.90700298,0.00037044,60]
[400307005,1767341902830,-178.66115753,0.00037044,60]
[400307006,1767341902969,-503.60226753,0.00037044,60]
[400307007,1767341902998,-500.0,0.00037044,60]
[400307008,1767341903025,-500.0,0.00037044,60]
[400307009,1767341903053,-229.17749292,0.00037044,60]
[400307010,1767341903080,-500.0,0.00037044,60]
[400307011,1767341903118,-500.0,0.00037044,60]
[400307012,1767341903152,-244.01447816,0.00037044,60]
[400307013,1767341903183,-528.89953741,0.00037044,60]
[400307014,1767341903213,-500.0,0.00037044,60]
[400307015,1767341903242,-286.03148626,0.00037044,60]
[400307016,1767341903273,-500.0,0.00037044,60]
[400307017,1767341903303,-500.0,0.00037044,60]
[400307018,1767341903335,-500.0,0.00037044,60]
[400307019,1767341903366,-500.0,0.00037044,60]
[400307020,1767341903397,-500.0,0.00037044,60]
[400307021,1767341903428,-363.93651066,0.00037044,60]
[400307022,1767341903459,-500.0,0.00037044,60]
[400307023,1767341903488,-500.0,0.00037044,60]
[400307024,1767341903518,-500.0,0.00037044,60]
[400307025,1767341903549,-500.0,0.00037044,60]
[400307026,1767341903579,-500.0,0.00037044,60]
[400307027,1767341903610,-500.0,0.00037044,60]
[400307028,1767341903641,-248.890508,0.00037044,60]
[400307029,1767341903672,-500.0,0.00037044,60]
[400307030,1767341903700,-500.0,0.00037044,60]
[400307031,1767341903728,-500.0,0.00037044,60]
[400307032,1767341903756,-518.40627047,0.00037044,60]
[400307033,1767341903785,-251.66418398,0.00037044,60]
[400307034,1767341903815,-506.59758664,0.00037044,60]
[400307035,1767341903845,-525.77246664,0.00037044,60]
[400307036,1767341903875,-569.3168502,0.00037044,60]
[400307037,1767341903904,-500.0,0.00037044,60]
[400307038,1767341903934,-185.27701442,0.00037044,60]
[400307039,1767341903962,-500.0,0.00037044,30]
[400307040,1767341903991,-500.0,0.00037044,30]
[400307041,1767341904021,-196.03513151,0.00037044,30]
[400307042,1767341904051,-506.57607872,0.00037044,60]
[400307043,1767341904079,-500.0,0.00037044,60]
[400307044,1767341904109,-536.70495646,0.00037044,60]
[400307045,1767341904147,-496.84809073,0.00037044,60]
[400307046,1767341904197,-500.0,0.00037044,60]
[400307047,1767341904235,-513.50863141,0.00037044,60]
[400307048,1767341904279,-253.48114857,0.00037044,60]
[400307049,1767341904320,-500.0,0.00037044,60]
[400307050,1767341904362,-490.6873386,0.00037044,60]
[400307051,1767341904403,-229.459466,0.00037044,60]
[400307052,1767341904444,-282.89381141,0.00037044,60]
[400307053,1767341904484,-643.96223915,0.00037044,60]
[400307054,1767341904518,-500.0,0.00037044,60]
[400307055,1767341904556,-241.62229117,0.00037044,60]
[400307056,1767341904596,-500.0,0.00037044,60]
[400307057,1767341904639,-500.0,0.00037044,60]
[400307058,1767341904679,-224.8551247,0.00037044,60]
[400307059,1767341904712,-419.72323994,0.00037044,60]
[400307060,1767341904749,-530.78365156,0.00037044,60]
[400307061,1767341904783,-296.4075157,0.00037044,60]
[400307062,1767341904818,-500.0,0.00037044,60]
[400307063,1767341904851,-166.33518296,0.00037044,60]
[400307064,1767341904884,-500.0,0.00037044,60]
[400307065,1767341904921,-201.2256985,0.00037044,60]
[400307066,1767341904955,-209.83386198,0.00037044,60]
[400307067,1767341904991,-500.0,0.00037044,60]
[400307068,1767341905024,-252.98824927,0.00037044,60]
[400307069,1767341905057,-540.58532116,0.00037044,60]
[400307070,1767341905089,-423.83743308,0.00037044,60]
[400307071,1767341905122,-246.99760649,0.00037044,60]
[400307072,1767341905154,-448.62433646,0.00037044,60]
[400307073,1767341905187,-286.01332492,0.00037044,60]
[400307074,1767341905222,-218.25963418,0.00037044,60]
[400307075,1767341905255,-254.93145736,0.00037044,60]
[400307076,1767341905290,-187.35730916,0.00037044,60]
[400307077,1767341905326,-452.98320798,0.00037044,60]
[400307078,1767341905361,-219.66052695,0.00037044,60]
[400307079,1767341905397,-500.0,0.00037044,60]
[400307080,1767341905433,-269.24867465,0.00037044,60]
[400307081,1767341905472,-500.0,0.00037044,60]
[400307082,1767341905506,-161.79944256,0.00037044,60]
[400307083,1767341905540,-500.0,0.00037044,60]
[400307084,1767341905576,-315.36875016,0.00037044,60]
[400307085,1767341905756,-504.41662235,0.00037044,60]
[400307086,1767341905787,-500.0,0.00037044,60]
[400307087,1767341905818,-500.0,0.00037044,60]